fUSD/lending_fUSD_20241023
["ID","MTS","AMOUNT","RATE_DAILY","PERIOD"]
[340724213,1729720240521,-500.0,0.00014989,2]
[340724214,1729720240530,-500.0,0.00014989,2]
[340724215,1729720240540,-500.0,0.00014989,2]
[340724216,1729720240550,-570.71173682,0.00014989,2]
[340724217,1729720240560,-500.0,0.00014989,2]
[340724218,1729720240570,-689.87,0.0001499,2]
[340724219,1729720240698,-226701.649598,0.0001499,2]
[340724220,1729720240712,-164698.557863,0.0001499,2]
[340724221,1729720240722,-1128.66716111,0.0001499,2]
[340724222,1729720240733,-1000.0,0.00014999,2]
[340724223,1729720240743,-630.73,0.00014999,2]
[340724224,1729720240754,-500.0,0.00014999,2]
[340724225,1729720240765,-354.45737696,0.00014999,2]
[340724227,1729720240775,-172.28877627,0.00014999,2]
[340724228,1729720240784,-166.19,0.00014999,2]
[340724230,1729720240793,-197.21774615,0.00015,2]
[340724232,1729720240802,-527327.15250659,0.00015,2]
[340724234,1729720240812,-151.0,0.00015,2]
[340724236,1729720240822,-151.0,0.00015,2]
[340724238,1729720240831,-151.0,0.00015,2]
[340724240,1729720240841,-151.0,0.00015,2]
[340724242,1729720240850,-151.0,0.00015,2]
[340724244,1729720240861,-188.14368,0.00015,2]
[340724246,1729720240871,-155.852258,0.00015,2]
[340724248,1729720240880,-287.917486,0.00015,2]
[340724250,1729720240890,-151.0,0.00015,2]
[340724252,1729720240899,-151.0,0.00015,2]
[340724254,1729720240909,-151.0,0.00015,2]
[340724256,1729720240919,-151.0,0.00015,2]
[340724258,1729720240928,-151.0,0.00015,2]
[340724259,1729720240937,-151.0,0.00015,2]
[340724261,1729720240947,-151.0,0.00015,2]
[340724263,1729720240956,-151.0,0.00015,2]
[340724265,1729720240965,-151.0,0.00015,2]
[340724267,1729720240975,-151.0,0.00015,2]
[340724269,1729720240984,-151.0,0.00015,2]
[340724271,1729720240994,-153.506429,0.00015,2]
[340724272,1729720241003,-151.0,0.00015,2]
[340724273,1729720241013,-151.0,0.00015,2]
[340724274,1729720241022,-151.0,0.00015,2]
[340724275,1729720241032,-151.0,0.00015,2]
[340724276,1729720241041,-260.065322,0.00015,2]
[340724277,1729720241051,-260.065322,0.00015,2]
[340724278,1729720241060,-661.227698,0.00015,2]
[340724279,1729720241069,-661.227698,0.00015,2]
[340724280,1729720241079,-151.0,0.00015,2]
[340724281,1729720241088,-151.0,0.00015,2]
[340724282,1729720241097,-151.0,0.00015,2]
[340724283,1729720241107,-151.0,0.00015,2]
[340724284,1729720241116,-152.706983,0.00015,2]
[340724285,1729720241125,-152.706983,0.00015,2]
[340724286,1729720241134,-151.0,0.00015,2]
[340724287,1729720241143,-151.0,0.00015,2]
[340724288,1729720241152,-151.0,0.00015,2]
[340724289,1729720241161,-526.545126,0.00015,2]
[340724290,1729720241170,-526.545126,0.00015,2]
[340724291,1729720241180,-151.0,0.00015,2]
[340724292,1729720241189,-151.0,0.00015,2]
[340724293,1729720241199,-151.0,0.00015,2]
[340724294,1729720241208,-151.0,0.00015,2]
[340724295,1729720241217,-151.0,0.00015,2]
[340724296,1729720241226,-151.0,0.00015,2]
[340724297,1729720241236,-151.0,0.00015,2]
[340724298,1729720241245,-152.734169,0.00015,2]
[340724299,1729720241254,-151.0,0.00015,2]
[340724300,1729720241264,-151.0,0.00015,2]
[340724301,1729720241274,-234.287018,0.00015,2]
[340724302,1729720241283,-151.0,0.00015,2]
[340724303,1729720241292,-153.374372,0.00015,2]
[340724304,1729720241302,-151.0,0.00015,2]
[340724305,1729720241311,-292.732976,0.00015,2]
[340724306,1729720241321,-243.801872,0.00015,2]
[340724307,1729720241330,-243.801872,0.00015,2]
[340724308,1729720241340,-151.0,0.00015,2]
[340724309,1729720241349,-151.0,0.00015142,2]
[340724310,1729720241359,-151.0,0.00015142,2]
[340724311,1729720241368,-151.0,0.00015142,2]
[340724312,1729720241377,-206.428012,0.00015142,2]
[340724313,1729720241387,-219.15343673,0.0001526,2]
[340724314,1729720241397,-370.0,0.00015293,2]
[340724315,1729720241406,-155.48,0.00015342,2]
[340724316,1729720241415,-151.0,0.00015733,2]
[340724317,1729720241425,-243.801872,0.00015733,2]
[340724318,1729720241434,-243.801872,0.00015733,2]
[340724319,1729720241443,-19965.07,0.00015733,2]
[340724320,1729720241453,-150.0,0.00015834,2]
[340724321,1729720241462,-4079.03,0.00015901,2]
[340724322,1729720241472,-150.0,0.00015978,2]
[340724323,1729720241481,-151.0,0.00016438,2]
[340724324,1729720241491,-200.0,0.00016589,2]
[340724325,1729720241500,-520.01,0.00016655,2]
[340724326,1729720241512,-172.15,0.00016656,2]
[340724327,1729720241521,-1667.84,0.00016828,2]
[340724328,1729720241530,-151.0,0.00016828,2]
[340724329,1729720241540,-151.0,0.00016828,2]
[340724330,1729720241549,-151.0,0.00016828,2]
[340724331,1729720241560,-151.0,0.00016828,2]
[340724332,1729720241570,-526.545126,0.00016828,2]
[340724333,1729720241579,-526.545126,0.00016828,2]
[340724334,1729720241588,-151.0,0.00016828,2]
[340724335,1729720241598,-151.0,0.00016828,2]
[340724336,1729720241607,-250.0,0.00016959,2]
[340724337,1729720241616,-151.0,0.00016959,2]
[340724338,1729720241626,-151.0,0.00016959,2]
[340724339,1729720241636,-151.0,0.00016959,2]
[340724340,1729720241645,-151.0,0.00016959,2]
[340724341,1729720241654,-151.0,0.00016959,2]
[340724342,1729720241663,-250.0,0.00017086,2]
[340724343,1729720241673,-180.28,0.00017729,2]
[340724344,1729720241682,-169.93,0.00017806,2]
[340724345,1729720241691,-151.0,0.00018356,2]
[340724346,1729720241701,-243.801872,0.00018356,2]
[340724347,1729720241711,-243.801872,0.00018356,2]
[340724348,1729720241720,-53822.08,0.00018356,2]
[340724349,1729720241730,-8668.3451507,0.00018909,3]
[340724350,1729720241739,-520.01,0.00018919,2]
[340724351,1729720241749,-279.47,0.00019151,2]
[340724352,1729720241759,-169.93,0.00019176,2]
[340724353,1729720241768,-346.93533665,0.00019589,2]
[340724354,1729720241778,-500.0,0.00019589,2]
[340724355,1729720241788,-500.0,0.00019589,2]
[340724356,1729720241797,-250.0,0.00019786,2]
[340724357,1729720241806,-151.0,0.00019882,2]
[340724358,1729720241815,-151.0,0.00019882,2]
[340724359,1729720241824,-151.0,0.00019882,2]
[340724360,1729720241833,-151.0,0.00019882,2]
[340724361,1729720241842,-151.0,0.00019882,2]
[340724362,1729720241852,-151.0,0.00019882,2]
[340724363,1729720241861,-260.065322,0.00019882,2]
[340724364,1729720241871,-260.065322,0.00019882,2]
[340724365,1729720241880,-661.227698,0.00019882,2]
[340724366,1729720241890,-661.227698,0.00019882,2]
[340724367,1729720241900,-151.0,0.00019882,2]
[340724368,1729720241909,-151.0,0.00019882,2]
[340724369,1729720241918,-151.0,0.00019882,2]
[340724370,1729720241928,-151.0,0.00019882,2]
[340724371,1729720241938,-152.706983,0.00019882,2]
[340724372,1729720241948,-152.706983,0.00019882,2]
[340724373,1729720241957,-151.0,0.00019882,2]
[340724374,1729720241967,-243.801872,0.00019882,2]
[340724375,1729720241977,-243.801872,0.00019882,2]
[340724376,1729720241986,-17336.6903014,0.00019882,3]
[340724377,1729720241996,-151.0,0.00019892,2]
[340724378,1729720242005,-151.0,0.00019892,2]
[340724379,1729720242015,-151.0,0.00019892,2]
[340724380,1729720242024,-260.065322,0.00019892,2]
[340724381,1729720242033,-260.065322,0.00019892,2]
[340724382,1729720242043,-661.227698,0.00019892,2]
[340724383,1729720242052,-661.227698,0.00019892,2]
[340724384,1729720242061,-151.0,0.00019892,2]
[340724385,1729720242071,-151.0,0.00019892,2]
[340724386,1729720242080,-212.746571,0.00019892,2]
[340724387,1729720242090,-152.706983,0.00019892,2]
[340724388,1729720242099,-152.706983,0.00019892,2]
[340724389,1729720242108,-151.0,0.00019892,2]
[340724390,1729720242118,-151.0,0.00019892,2]
[340724391,1729720242127,-151.0,0.00019892,2]
[340724392,1729720242136,-526.545126,0.00019892,2]
[340724393,1729720242146,-526.545126,0.00019892,2]
[340724394,1729720242155,-151.0,0.00019892,2]
[340724395,1729720242164,-151.0,0.00019892,2]
[340724396,1729720242173,-182.471336,0.00019892,2]
[340724397,1729720242182,-151.0,0.00019892,2]
[340724398,1729720242191,-151.0,0.00019892,2]
[340724399,1729720242200,-151.0,0.00019892,2]
[340724400,1729720242209,-151.0,0.00019892,2]
[340724401,1729720242218,-151.0,0.00019892,2]
[340724402,1729720242228,-243.801872,0.00019892,2]
[340724403,1729720242237,-243.801872,0.00019892,2]
[340724404,1729720242246,-23900.0,0.00019892,2]
[340724405,1729720242255,-4900.0,0.000199,7]
[340724406,1729720242265,-151.0,0.0001999,2]
[340724407,1729720242274,-151.0,0.0001999,2]
[340724408,1729720242284,-151.0,0.0001999,2]
[340724409,1729720242293,-2499.30374851,0.0002,2]
[340724410,1729720242304,-151.0,0.0002,2]
[340724411,1729720242313,-153.58678,0.0002,2]
[340724412,1729720242322,-151.0,0.0002,2]
[340724413,1729720242332,-151.0,0.0002,2]
[340724414,1729720242341,-151.0,0.0002,2]
[340724415,1729720242351,-151.0,0.0002,2]
[340724416,1729720242360,-8668.3451507,0.00020226,3]
[340724417,1729720242370,-151.0,0.00020236,2]
[340724418,1729720242379,-151.0,0.00020236,2]
[340724419,1729720242390,-151.0,0.00020236,2]
[340724420,1729720242400,-151.0,0.00020236,2]
[340724421,1729720242412,-151.0,0.00020236,2]
[340724422,1729720242421,-260.065322,0.00020236,2]
[340724423,1729720242430,-260.065322,0.00020236,2]
[340724424,1729720242439,-661.227698,0.00020236,2]
[340724425,1729720242448,-661.227698,0.00020236,2]
[340724426,1729720242457,-151.0,0.00020236,2]
[340724427,1729720242466,-151.0,0.00020236,2]
[340724428,1729720242474,-152.706983,0.00020236,2]
[340724429,1729720242485,-152.706983,0.00020236,2]
[340724430,1729720242494,-151.0,0.00020236,2]
[340724431,1729720242505,-151.0,0.00020236,2]
[340724432,1729720242516,-234.269445,0.00020236,2]
[340724433,1729720242526,-526.545126,0.00020236,2]
[340724434,1729720242534,-526.545126,0.00020236,2]
[340724435,1729720242543,-151.0,0.00020236,2]
[340724436,1729720242553,-151.0,0.00020236,2]
[340724437,1729720242562,-151.0,0.00020236,2]
[340724438,1729720242573,-151.0,0.00020236,2]
[340724439,1729720242584,-151.0,0.00020236,2]
[340724440,1729720242593,-151.0,0.00020236,2]
[340724441,1729720242603,-151.0,0.00020236,2]
[340724442,1729720242611,-243.801872,0.00020236,2]
[340724443,1729720242620,-243.801872,0.00020236,2]
[340724444,1729720242631,-26005.0354521,0.00020236,3]
[340724445,1729720242640,-151.0,0.00020246,2]
[340724446,1729720242649,-151.0,0.00020246,2]
[340724447,1729720242658,-151.0,0.00020246,2]
[340724448,1729720242667,-151.0,0.00020246,2]
[340724449,1729720242676,-151.0,0.00020246,2]
[340724450,1729720242685,-151.0,0.00020246,2]
[340724451,1729720242694,-151.0,0.00020246,2]
[340724452,1729720242704,-151.0,0.00020246,2]
[340724453,1729720242716,-151.0,0.00020246,2]
[340724454,1729720242727,-151.0,0.00020246,2]
[340724455,1729720242738,-151.0,0.00020246,2]
[340724456,1729720242749,-151.0,0.00020246,2]
[340724457,1729720242758,-151.0,0.00020246,2]
[340724458,1729720242768,-260.065322,0.00020246,2]
[340724459,1729720242777,-260.065322,0.00020246,2]
[340724460,1729720242786,-661.227698,0.00020246,2]
[340724461,1729720242795,-661.227698,0.00020246,2]
[340724462,1729720242804,-151.0,0.00020246,2]
[340724463,1729720242812,-151.0,0.00020246,2]
[340724464,1729720242822,-152.706983,0.00020246,2]
[340724465,1729720242831,-152.706983,0.00020246,2]
[340724466,1729720242840,-151.0,0.00020246,2]
[340724467,1729720242849,-151.0,0.00020246,2]
[340724468,1729720242858,-526.545126,0.00020246,2]
[340724469,1729720242867,-526.545126,0.00020246,2]
[340724470,1729720242876,-227.841428,0.00020246,2]
[340724471,1729720242886,-151.0,0.00020246,2]
[340724472,1729720242897,-151.0,0.00020246,2]
[340724473,1729720242907,-151.0,0.00020246,2]
[340724474,1729720242917,-151.0,0.00020246,2]
[340724475,1729720242926,-17336.6903014,0.00020538,3]
[340724476,1729720242935,-173.64,0.00020548,2]
[340724477,1729720242944,-20251.77,0.00020548,2]
[340724478,1729720242953,-291.65933,0.00020548,2]
[340724479,1729720242961,-243.801872,0.00020548,2]
[340724480,1729720242970,-243.801872,0.00020548,2]
[340724481,1729720242979,-8668.3451507,0.00020717,3]
[340724482,1729720242988,-151.0,0.00020718,2]
[340724483,1729720242997,-215.924486,0.00020718,2]
[340724484,1729720243006,-526.545126,0.00020718,2]
[340724485,1729720243015,-526.545126,0.00020718,2]
[340724486,1729720243024,-151.0,0.00020718,2]
[340724487,1729720243033,-253.12806,0.00020718,2]
[340724488,1729720243042,-151.0,0.00020718,2]
[340724489,1729720243051,-246.07808,0.00020727,2]
[340724490,1729720243061,-151.0,0.00020727,2]
[340724491,1729720243071,-151.0,0.00020727,2]
[340724492,1729720243080,-151.0,0.00020727,2]
[340724493,1729720243089,-260.065322,0.00020727,2]
[340724494,1729720243098,-260.065322,0.00020727,2]
[340724495,1729720243108,-661.227698,0.00020727,2]
[340724496,1729720243117,-661.227698,0.00020727,2]
[340724497,1729720243127,-151.0,0.00020727,2]
[340724498,1729720243136,-152.706983,0.00020727,2]
[340724499,1729720243145,-152.706983,0.00020727,2]
[340724500,1729720243154,-151.0,0.00020773,2]
[340724501,1729720243163,-526.545126,0.00020773,2]
[340724502,1729720243172,-526.545126,0.00020773,2]
[340724503,1729720243182,-151.0,0.00020773,2]
[340724504,1729720243191,-151.0,0.00020773,2]
[340724505,1729720243201,-243.801872,0.00020773,2]
[340724506,1729720243210,-243.801872,0.00020773,2]
[340724507,1729720243220,-7088.05027184,0.00020773,2]
[340724508,1729720243229,-1000.0,0.00020958,2]
[340724509,1729720243238,-694.51094639,0.00020958,2]
[340724510,1729720243247,-263.829835,0.00020997,2]
[340724511,1729720243257,-151.0,0.00020997,2]
[340724512,1729720243267,-151.0,0.00021029,2]
[340724513,1729720243276,-151.0,0.00021029,2]
[340724514,1729720243285,-151.0,0.00021029,2]
[340724515,1729720243294,-165.944582,0.00021029,2]
[340724516,1729720243303,-215.181569,0.00021029,2]
[340724517,1729720243313,-151.0,0.00021029,2]
[340724518,1729720243322,-151.0,0.00021029,2]
[340724519,1729720243331,-160.941246,0.00021029,2]
[340724520,1729720243341,-520.01,0.00021183,2]
[340724521,1729720243351,-151.0,0.00021907,2]
[340724522,1729720243360,-151.0,0.00021907,2]
[340724523,1729720243369,-151.0,0.00021907,2]
[340724524,1729720243378,-260.065322,0.00021907,2]
[340724525,1729720243388,-260.065322,0.00021907,2]
[340724526,1729720243397,-661.227698,0.00021907,2]
[340724527,1729720243407,-661.227698,0.00021907,2]
[340724528,1729720243416,-151.0,0.00021907,2]
[340724529,1729720243426,-152.706983,0.00021907,2]
[340724530,1729720243435,-152.706983,0.00021907,2]
[340724531,1729720243445,-151.0,0.00021907,2]
[340724532,1729720243454,-526.545126,0.00021907,2]
[340724533,1729720243464,-526.545126,0.00021907,2]
[340724534,1729720243474,-1875.783404,0.00021907,2]
[340724535,1729720243484,-2500.0,0.00021917,2]
[340724536,1729720243493,-2500.0,0.00021917,2]
[340724537,1729720243503,-2500.0,0.00021917,2]
[340724538,1729720243518,-2500.0,0.00021917,2]
[340724539,1729720243529,-151.0,0.00021917,2]
[340724540,1729720243538,-151.0,0.00021917,2]
[340724541,1729720243547,-200.98,0.00021918,2]
[340724542,1729720243557,-151.0,0.00021918,2]
[340724543,1729720243566,-151.0,0.00021918,2]
[340724544,1729720243576,-151.0,0.00021918,2]
[340724545,1729720243585,-151.0,0.00021918,2]
[340724546,1729720243595,-151.0,0.00021918,2]
[340724547,1729720243603,-920.39444595,0.00022142,2]
[340724548,1729720243613,-151.0,0.00022142,7]
[340724549,1729720243623,-151.0,0.00022142,7]
[340724550,1729720243632,-720.08831255,0.00022962,2]
[340724551,1729720243641,-200.0,0.00023,2]
[340724552,1729720243651,-265.65224704,0.0002301,2]
[340724553,1729720243660,-563.96639024,0.0002322,2]
[340724554,1729720243669,-520.01,0.00023447,2]
[340724555,1729720243679,-243.801872,0.00023559,7]
[340724556,1729720243688,-243.801872,0.00023559,7]
[340724557,1729720243698,-1667.84,0.00023559,2]
[340724558,1729720243707,-500.0,0.00023579,2]
[340724559,1729720243716,-165.76,0.00023732,2]
[340724560,1729720243726,-969.5286864,0.00024,2]
[340724561,1729720243735,-151.0,0.0002407,7]
[340724562,1729720243745,-151.0,0.0002407,7]
[340724563,1729720243754,-260.065322,0.0002407,7]
[340724564,1729720243764,-260.065322,0.0002407,7]
[340724565,1729720243773,-661.227698,0.0002407,7]
[340724567,1729720243782,-661.227698,0.0002407,7]
[340724569,1729720243791,-151.0,0.0002407,7]
[340724571,1729720243799,-152.706983,0.0002407,7]
[340724572,1729720243808,-152.706983,0.0002407,7]
[340724573,1729720243819,-151.0,0.0002407,7]
[340724574,1729720243830,-526.545126,0.0002407,7]
[340724575,1729720243840,-526.545126,0.0002407,7]
[340724576,1729720243850,-1875.783404,0.0002407,7]
[340724577,1729720243861,-4073.5903891,0.0002408,2]
[340724578,1729720243871,-151.0,0.0002408,7]
[340724579,1729720243881,-151.0,0.0002408,7]
[340724580,1729720243890,-151.0,0.0002408,7]
[340724581,1729720243900,-151.0,0.0002408,7]
[340724582,1729720243909,-151.0,0.0002408,7]
[340724583,1729720243919,-151.0,0.0002408,7]
[340724584,1729720243928,-151.0,0.0002408,7]
[340724585,1729720243938,-249.99999801,0.000245,2]
[340724586,1729720243948,-151.0,0.0002498,7]
[340724587,1729720243959,-151.0,0.0002498,7]
[340724588,1729720243969,-151.0,0.0002498,7]
[340724589,1729720243979,-179.292386,0.0002498,7]
[340724590,1729720243987,-260.065322,0.0002498,7]
[340724591,1729720243997,-260.065322,0.0002498,7]
[340724592,1729720244006,-661.227698,0.0002498,7]
[340724594,1729720244016,-661.227698,0.0002498,7]
[340724595,1729720244025,-151.0,0.0002498,7]
[340724597,1729720244034,-152.706983,0.0002498,7]
[340724599,1729720244044,-152.706983,0.0002498,7]
[340724601,1729720244055,-151.0,0.0002498,7]
[340724602,1729720244065,-526.545126,0.0002498,7]
[340724603,1729720244075,-526.545129,0.0002498,7]
[340724604,1729720244085,-1875.7834,0.0002498,7]
[340724605,1729720244095,-151.0,0.0002498,7]
[340724606,1729720244104,-151.0,0.0002498,7]
[340724607,1729720244113,-2500.0,0.00024989,2]
[340724608,1729720244123,-151.0,0.0002499,7]
[340724609,1729720244132,-151.0,0.0002499,7]
[340724610,1729720244142,-266.352234,0.0002499,7]
[340724611,1729720244152,-151.0,0.0002499,7]
[340724612,1729720244161,-151.0,0.0002499,7]
[340724613,1729720244170,-151.0,0.0002499,7]
[340724614,1729720244180,-300.405798,0.0002499,7]
[340724615,1729720244189,-151.0,0.0002499,7]
[340724616,1729720244199,-151.0,0.0002499,7]
[340724617,1729720244208,-151.0,0.0002499,7]
[340724618,1729720244218,-210.60767,0.0002499,7]
[340724619,1729720244228,-151.0,0.0002499,7]
[340724620,1729720244237,-243.801872,0.0002499,7]
[340724621,1729720244247,-243.801862,0.0002499,7]
[340724622,1729720244258,-151.0,0.00024999,7]
[340724623,1729720244384,-260.065322,0.00024999,7]
[340724624,1729720244395,-260.065329,0.00024999,7]
[340724625,1729720244406,-661.227698,0.00024999,7]
[340724626,1729720244415,-661.227707,0.00024999,7]
[340724627,1729720244424,-151.0,0.00024999,7]
[340724628,1729720244434,-152.706983,0.00024999,7]
[340724629,1729720244443,-152.706974,0.00024999,7]
[340724630,1729720244453,-82231.41623327,0.00025,2]
[340724631,1729720244463,-153.066387,0.00025,7]
[340724632,1729720244472,-151.0,0.00025,7]
[340724633,1729720244482,-176.258158,0.00025,7]
[340724634,1729720244491,-151.0,0.00025,7]
[340724635,1729720244502,-198.728757,0.00025,7]
[340724636,1729720244515,-151.0,0.00025,7]
[340724637,1729720244524,-167.21705784,0.00025489,2]
[340724638,1729720244535,-151.0,0.00025607,7]
[340724639,1729720244545,-520.01,0.00025711,2]
[340724640,1729720244556,-198.2,0.00025759,2]
[340724641,1729720244566,-1000.0,0.0002577,2]
[340724642,1729720244576,-159.75,0.00026233,2]
[340724643,1729720244588,-151.0,0.00026459,7]
[340724644,1729720244599,-151.0,0.00026459,7]
[340724645,1729720244610,-151.0,0.00026459,7]
[340724646,1729720244620,-7088.05027184,0.00026657,2]
[340724647,1729720244630,-2500.0,0.00026852,2]
[340724648,1729720244640,-150.11,0.00027397,2]
[340724649,1729720244650,-165.76,0.00027649,2]
[340724650,1729720244660,-520.01,0.00027975,2]
[340724651,1729720244670,-11417.83373468,0.00028,2]
[340724652,1729720244679,-228.35667469,0.00028,2]
[340724653,1729720244689,-159.75,0.00028856,2]
[340724654,1729720244699,-1000.0,0.00028992,2]
[340724655,1729720244708,-920.39444595,0.00029394,2]
[340724656,1729720244718,-151.0,0.0002968,7]
[340724657,1729720244728,-150.11,0.0002968,2]
[340724658,1729720244737,-151.0,0.0003,120]
[340724659,1729720244747,-63645.07333521,0.0003,2]
[340724660,1729720244756,-333.95872374,0.0003,2]
[340724661,1729720244767,-202.67477127,0.0003,2]
[340724662,1729720244777,-202.67477127,0.0003,2]
[340724663,1729720244787,-202.67477127,0.0003,2]
[340724664,1729720244797,-202.67477127,0.0003,2]
[340724665,1729720244807,-151.288234,0.00030099,7]
[340724666,1729720244816,-520.01,0.00030239,2]
[340724667,1729720244826,-151.0,0.00031313,7]
[340724668,1729720244835,-159.75,0.0003148,2]
[340724669,1729720244845,-150.11,0.00031963,2]
[340724670,1729720244855,-1000.0,0.00032213,2]
[340724671,1729720244865,-520.01,0.00032503,2]
[340724672,1729720244875,-7088.05027184,0.0003254,15]
[340724673,1729720244885,-151.0,0.00032708,7]
[340724674,1729720244896,-151.198624,0.0003287,7]
[340724675,1729720244906,-151.0,0.0003287,7]
[340724676,1729720244915,-187.82440874,0.00032877,2]
[340724677,1729720244926,-264.562,0.00033636,36]
[340724678,1729720244936,-165.826,0.00033636,36]
[340724679,1729720244946,-150.11,0.00034247,2]
[340724680,1729720244956,-520.01,0.00034766,2]
[340724681,1729720244966,-1000.0,0.00035434,2]
[340724682,1729720244976,-167.21705784,0.00036078,2]
[340724683,1729720244986,-161.10146292,0.00036511,5]
[340724684,1729720244996,-150.11,0.0003653,2]
[340724685,1729720245006,-920.39444595,0.00036646,2]
[340724686,1729720245016,-520.01,0.0003703,2]
[340724687,1729720245026,-7088.05027184,0.00038423,15]
[340724688,1729720245036,-1000.0,0.00038655,2]
[340724689,1729720245046,-150.11,0.00038813,2]
[340724690,1729720245056,-294.35098281,0.00039,2]
[340724691,1729720245065,-520.01,0.00039294,2]
[340724692,1729720245075,-10000.0,0.0004,7]
[340724693,1729720245085,-151.0,0.0004,14]
[340724694,1729720245094,-339.49536537,0.00040817,2]
[340724695,1729720245104,-162.02955995,0.00040894,15]
[340724696,1729720245114,-7400.0,0.000409,14]
[340724697,1729720245124,-151.0,0.00040993,14]
[340724698,1729720245134,-252.929222,0.00041003,14]
[340724699,1729720245143,-1128.66716111,0.00041012,2]
[340724700,1729720245154,-164755.5626042,0.00041022,2]
[340724701,1729720245163,-1210.0,0.00041022,2]
[340724702,1729720245172,-3664.86711169,0.00041022,2]
[340724703,1729720245182,-341.96238014,0.00041022,2]
[340724704,1729720245191,-2951.54364789,0.00041022,2]
[340724705,1729720245201,-1493.06747285,0.00041022,2]
[340724706,1729720245211,-7245.02045232,0.00041022,2]
[340724707,1729720245221,-1010.80992197,0.00041022,2]
[340724708,1729720245231,-5090.53772215,0.00041022,2]
[340724709,1729720245241,-2683.37582799,0.00041022,2]
[340724710,1729720245251,-2410.28878925,0.00041022,2]
[340724711,1729720245260,-2629.63985031,0.00041022,2]
[340724712,1729720245273,-134954.89142522,0.00041022,2]
[340724713,1729720245283,-3188.5745106,0.00041022,2]
[340724714,1729720245292,-1456.53654738,0.00041022,2]
[340724715,1729720245302,-22401.35602459,0.00041022,2]
[340724716,1729720245313,-7581.13094704,0.00041022,2]
[340724717,1729720245323,-1049.40907313,0.00041022,2]
[340724718,1729720245334,-5863.79518369,0.00041022,2]
[340724719,1729720245344,-854.29873768,0.00041022,2]
[340724720,1729720245354,-187.47182799,0.00041022,2]
[340724721,1729720245364,-1287.92433998,0.00041022,2]
[340724722,1729720245374,-4854.05941088,0.00041022,2]
[340724723,1729720245383,-291.52897189,0.00041022,2]
[340724724,1729720245393,-3944.92956042,0.00041022,2]
[340724725,1729720245403,-22359.87951576,0.00041022,2]
[340724726,1729720245413,-12607.92144981,0.00041022,2]
[340724727,1729720245422,-1887.16510976,0.00041022,2]
[340724728,1729720245432,-180.78451296,0.00041022,2]
[340724729,1729720245441,-5485.57172122,0.00041022,2]
[340724730,1729720245451,-643.0,0.00041022,2]
[340724731,1729720245460,-953.2103108,0.00041022,2]
[340724732,1729720245470,-9424.81459886,0.00041022,2]
[340724733,1729720245480,-282.37804821,0.00041022,2]
[340724734,1729720245489,-1372.3284621,0.00041022,2]
[340724735,1729720245499,-1973.23,0.00041022,2]
[340724736,1729720245510,-150.11,0.00041096,2]
[340724737,1729720245521,-520.01,0.00041558,2]
[340724738,1729720245531,-656.61,0.00042,2]
[340724739,1729720245540,-163.37,0.00043066,2]
[340724740,1729720245550,-520.01,0.00043822,2]
[340724741,1729720245559,-920.39444595,0.00043897,28]